bitfinex-derivatives/quotes_BNBF0:USTF0_20251225
["timestamp","ask_amount","ask_price","bid_price","bid_amount"]
[1766668881006,1.87920057,836.03,834.9,1.78518797]
[1766668881304,1.87920057,836.02,834.9,1.78518797]
[1766668881604,1.87920057,836.01,834.9,1.78518797]
[1766668881808,1.87922873,836.0,834.88,1.78518797]
[1766668882008,1.87922873,835.99,834.88,1.78518797]
[1766668882207,0.68205737,835.98,834.88,1.78518797]
[1766668882407,0.68205737,835.97,834.88,1.78518797]
[1766668882603,0.20818814,836.06,834.88,1.78518797]
[1766668882604,0.68205737,835.96,834.88,1.78518797]
[1766668882909,0.68205737,835.95,834.88,1.78518797]
[1766668883205,0.68205737,835.94,834.87,1.78518797]
[1766668883410,0.68205737,835.93,834.88,1.78518797]
[1766668883706,0.68205737,835.92,834.88,1.78518797]
[1766668883908,13.89767436,835.91,834.88,1.78518797]
[1766668884108,0.68205737,835.9,834.88,1.78518797]
[1766668885204,0.68205737,835.89,834.88,1.78518797]
[1766668885410,0.68205737,835.88,834.88,1.78518797]
[1766668885611,0.68205737,835.87,834.88,1.78518797]
[1766668885813,0.68205737,835.86,834.88,1.78518797]
[1766668886007,13.21561699,835.91,834.88,1.78518797]
[1766668886008,0.68205737,835.85,834.88,1.78518797]
[1766668886211,0.68205737,835.84,834.88,1.78518797]
[1766668886411,0.68205737,835.83,834.88,1.78518797]
[1766668886711,13.21561699,835.91,834.88,1.78518797]
[1766668887007,0.68216348,835.9,834.88,1.78518797]
[1766668887212,0.68216348,835.89,834.89,1.78518797]
[1766668887407,0.68216348,835.88,834.89,1.78518797]
[1766668887607,0.68216348,835.87,834.89,1.78518797]
[1766668887811,0.68216348,835.86,834.89,1.78518797]
[1766668888111,0.68216348,835.85,834.89,1.78518797]
[1766668888312,0.68216348,835.84,834.89,1.78518797]
[1766668888513,0.68216348,835.83,834.89,1.78518797]
[1766668888711,0.20818814,836.06,834.89,1.78518797]
[1766668888712,0.68216348,835.82,834.89,1.78518797]
[1766668888911,0.20818814,836.06,834.89,1.78518797]
[1766668889116,1.87944489,836.05,834.91,1.78518797]
[1766668889417,1.87944489,836.04,834.91,1.78518797]
[1766668889616,1.87944489,836.03,834.91,1.78518797]
[1766668889813,1.87944489,836.02,834.91,1.78518797]
[1766668890017,1.87944489,836.01,834.91,1.78518797]
[1766668890216,1.87944489,836.0,834.91,1.78518797]
[1766668890414,1.87944489,835.99,834.91,1.78518797]
[1766668890616,1.87944489,835.98,834.91,1.78518797]
[1766668890822,0.68226115,835.97,834.91,1.78518797]
[1766668891022,0.68226115,835.96,834.91,1.78518797]
[1766668891223,0.68226115,835.95,834.92,1.78518797]
[1766668891423,0.68226115,835.94,834.92,1.78518797]
[1766668891622,0.68226115,835.93,834.92,1.78518797]
[1766668891820,0.68226115,835.92,834.92,1.78518797]
[1766668892024,0.68226115,835.91,834.92,1.78518797]
[1766668892224,0.68226115,835.9,834.92,10.90980012]
[1766668892424,0.68226115,835.89,834.92,10.90980012]
[1766668892620,0.68226115,835.88,834.92,10.90980012]
[1766668892826,0.68226115,835.87,834.92,10.90980012]
[1766668893020,0.68226115,835.86,834.92,10.90980012]
[1766668893322,0.68226115,835.85,834.93,1.78518797]
[1766668893523,0.68226115,835.84,834.93,1.78518797]
[1766668893724,0.68226115,835.83,834.93,1.78518797]
[1766668893924,13.0937328,835.92,834.93,1.78518797]
[1766668894124,0.6819954,835.91,834.93,1.78518797]
[1766668894325,0.6819954,835.9,834.93,1.78518797]
[1766668894522,0.6819954,835.89,834.93,1.78518797]
[1766668894726,0.6819954,835.88,834.93,1.78518797]
[1766668894924,0.6819954,835.87,834.93,1.78518797]
[1766668895126,0.6819954,835.86,834.93,1.78518797]
[1766668895426,0.6819954,835.85,834.96,1.78518797]
[1766668895622,0.20818814,836.06,834.97,1.78518797]
[1766668895824,1.87928259,836.05,834.99,1.78518797]
[1766668896024,1.87928259,836.04,834.99,1.78518797]
[1766668896228,1.87928259,836.03,835.0,1.78518797]
[1766668896428,1.87928259,836.02,835.0,1.78518797]
[1766668896727,0.68221166,836.01,835.0,1.78518797]
[1766668897027,0.68221166,836.0,835.0,1.78518797]
[1766668897324,0.68221166,835.99,835.0,1.78518797]
[1766668897528,0.68221166,835.98,835.01,1.78518797]
[1766668897726,0.68221166,835.97,835.01,1.78518797]
[1766668898026,0.68221166,835.96,835.01,1.78518797]
[1766668898226,0.68221166,835.95,835.02,1.78518797]
[1766668898429,0.68221166,835.94,835.02,1.78518797]
[1766668898629,0.68221166,835.93,835.02,1.78518797]
[1766668898825,0.68221166,835.92,835.02,1.78518797]
[1766668899023,0.68221166,835.91,835.02,1.78518797]
[1766668899226,0.68221166,835.9,835.02,1.78518797]
[1766668899426,0.68221166,835.89,835.02,10.62529815]
[1766668899626,0.68221166,835.88,835.02,10.62529815]
[1766668899826,0.68221166,835.87,835.02,10.62529815]
[1766668900130,0.68261501,835.86,835.02,10.62529815]
[1766668900326,13.22951208,835.9,835.02,10.62529815]
[1766668900526,0.68262144,835.89,835.02,10.62529815]
[1766668900725,0.68262144,835.88,835.02,10.62529815]
[1766668900927,0.68262144,835.87,835.02,10.62529815]
[1766668901126,0.68262144,835.86,835.02,10.62529815]
[1766668901426,13.22951208,835.9,835.02,10.62529815]
[1766668901631,0.68263124,835.89,835.02,10.62529815]
[1766668901829,0.68263124,835.88,835.02,10.62529815]
[1766668902027,0.68263124,835.87,835.02,10.62529815]
[1766668902227,0.68263124,835.86,835.03,1.78518797]
[1766668902528,13.22951208,835.9,835.03,1.78518797]
[1766668902726,0.68266045,835.89,835.03,1.78518797]
[1766668902931,0.68266045,835.88,835.03,1.78518797]
[1766668903231,0.68266045,835.87,835.03,1.78518797]
[1766668903526,0.68266045,835.86,835.03,1.78518797]
[1766668903730,0.20818814,836.06,835.03,1.78518797]
[1766668903927,1.87973707,836.05,835.03,1.78518797]
[1766668904128,1.87973707,836.04,835.04,1.78518797]
[1766668904333,1.87973707,836.03,835.04,1.78518797]
[1766668904628,1.87973707,836.02,835.04,1.78518797]
[1766668904931,0.68267549,836.01,835.04,1.78518797]
[1766668905132,0.68267549,836.0,835.04,1.78518797]
[1766668905333,0.68267549,835.99,835.04,1.78518797]
[1766668905534,0.68267549,835.98,835.04,1.78518797]
[1766668905734,0.68267549,835.97,835.04,1.78518797]
[1766668905928,0.68267549,835.96,835.04,1.78518797]
[1766668906134,0.68267549,835.95,835.04,1.78518797]
[1766668906333,0.68267549,835.94,835.04,1.78518797]
[1766668906531,0.68267549,835.93,835.04,1.78518797]
[1766668906730,0.68267549,835.92,835.04,1.78518797]
[1766668907034,0.68267549,835.91,835.04,1.78518797]
[1766668907232,0.68267549,835.9,835.04,1.78518797]
[1766668907432,0.68267549,835.89,835.04,1.78518797]
[1766668907736,0.68267549,835.88,835.04,1.78518797]
[1766668907938,0.68267549,835.87,835.02,1.78518797]
[1766668908140,0.68267549,835.86,835.02,1.78518797]
[1766668908341,0.68267549,835.85,835.02,1.78518797]
[1766668908641,0.20818814,836.06,835.02,1.78518797]
[1766668908843,1.87978283,836.05,835.02,1.78518797]
[1766668909038,1.87978283,836.04,835.02,1.78518797]
[1766668909241,1.87978283,836.03,835.02,1.78518797]
[1766668909440,1.87978283,836.02,835.02,1.78518797]
[1766668909639,1.87978283,836.01,835.02,1.78518797]
[1766668909840,1.87978283,836.0,835.02,1.78518797]
[1766668910044,0.68271271,835.99,835.02,1.78518797]
[1766668910244,0.68271271,835.98,835.02,1.78518797]
[1766668910439,0.68271271,835.97,835.02,1.78518797]
[1766668910739,0.68271271,835.96,835.02,1.78518797]
[1766668910938,0.68271271,835.95,835.02,1.78518797]
[1766668911141,0.68271271,835.94,835.02,1.78518797]
[1766668911350,0.68271271,835.93,835.03,1.78518797]
[1766668911545,0.68271271,835.92,835.03,1.78518797]
[1766668911745,0.68271271,835.91,835.03,1.78518797]
[1766668911945,0.68271271,835.9,835.03,10.92479793]
[1766668912147,0.68271271,835.89,835.03,10.92479793]
[1766668912442,0.68271271,835.88,835.03,10.92479793]
[1766668912742,0.68271271,835.87,835.03,10.92479793]
[1766668912942,0.68271271,835.86,835.03,10.92479793]
[1766668913143,0.68271271,835.85,835.03,10.92479793]
[1766668913342,12.87422908,835.91,835.03,10.92479793]
[1766668913541,0.6828118,835.9,835.03,10.92479793]
[1766668913845,0.6828118,835.89,835.03,10.92479793]
[1766668914141,0.6828118,835.88,835.03,10.92479793]
[1766668914346,0.6828118,835.87,835.03,10.92479793]
[1766668914545,0.6828118,835.86,835.03,10.92479793]
[1766668914741,0.6828118,835.85,835.03,10.92479793]
[1766668914946,12.87422908,835.91,835.03,10.92479793]
[1766668915140,0.6828182,835.9,835.03,1.78518797]
[1766668915440,0.6828182,835.89,835.03,1.78518797]
[1766668915740,0.6828182,835.88,835.03,1.78518797]
[1766668915940,0.6828182,835.87,835.03,1.78518797]
[1766668916146,0.6828182,835.86,835.03,1.78518797]
[1766668916343,0.6828182,835.85,835.03,1.78518797]
[1766668916542,0.20818814,836.06,835.03,1.78518797]
[1766668916743,1.87990194,836.05,835.03,1.78518797]
[1766668916940,1.87990194,836.04,835.03,1.78518797]
[1766668917241,1.87990194,836.03,835.03,1.78518797]
[1766668917445,1.87990194,836.02,835.03,1.78518797]
[1766668917642,1.87990194,836.01,835.03,1.78518797]
[1766668917846,1.87990194,836.0,835.03,1.78518797]
[1766668918146,0.6828314,835.99,835.03,1.78518797]
[1766668918346,0.6828314,835.98,835.03,1.78518797]
[1766668918547,0.6828314,835.97,835.03,1.78518797]
[1766668918747,0.6828314,835.96,835.03,1.78518797]
[1766668918948,0.6828314,835.95,835.03,1.78518797]
[1766668919247,0.6828314,835.94,835.03,1.78518797]
[1766668919448,0.6828314,835.93,835.03,1.78518797]
[1766668919747,0.6828314,835.92,835.03,1.78518797]
[1766668920047,0.6828314,835.91,835.03,1.78518797]
[1766668920245,0.6828314,835.9,835.03,1.78518797]
[1766668920448,0.6828314,835.89,835.01,1.78518797]
[1766668920647,0.6828314,835.88,835.01,1.78518797]
[1766668920843,0.6828314,835.87,835.01,1.78518797]
[1766668921148,0.6828314,835.86,835.01,1.78518797]
[1766668921347,0.6828314,835.85,835.01,1.78518797]
[1766668921549,0.6828314,835.84,835.01,1.78518797]
[1766668921744,0.6828314,835.83,835.01,1.78518797]
[1766668921945,13.06274717,835.96,835.01,1.78518797]
[1766668922246,0.68196214,835.95,835.01,1.78518797]
[1766668922446,0.68196214,835.94,835.01,1.78518797]
[1766668922646,0.68196214,835.93,835.01,1.78518797]
[1766668922948,0.68196214,835.92,835.01,1.78518797]
[1766668923146,0.68196214,835.91,835.01,1.78518797]
[1766668923349,0.68196214,835.9,835.01,1.78518797]
[1766668923548,0.68196214,835.89,835.01,1.78518797]
[1766668923748,0.68196214,835.88,835.01,1.78518797]
[1766668923947,0.68196214,835.87,835.01,1.78518797]
[1766668924150,0.68196214,835.86,835.01,1.78518797]
[1766668924350,0.68196214,835.85,835.01,1.78518797]
[1766668924550,0.68196214,835.84,835.01,1.78518797]
[1766668924750,0.68196214,835.83,835.01,1.78518797]
[1766668924949,0.20818814,836.06,835.01,1.78518797]
[1766668925146,1.87907479,836.05,835.01,1.78518797]
[1766668925346,1.87907479,836.04,835.01,1.78518797]
[1766668925546,1.87907479,836.03,835.01,1.78518797]
[1766668925745,1.87907479,836.02,835.01,1.78518797]
[1766668925949,1.87907479,836.01,835.01,1.78518797]
[1766668926151,1.87907479,836.0,835.01,1.78518797]
[1766668926350,1.87907479,835.99,835.01,1.78518797]
[1766668926548,1.87907479,835.98,835.01,1.78518797]
[1766668926752,0.68197822,835.97,835.01,1.78518797]
[1766668926952,0.68197822,835.96,835.01,1.78518797]
[1766668927152,0.68197822,835.95,835.01,1.78518797]
[1766668927352,0.68197822,835.94,835.01,1.78518797]
[1766668927648,0.68197822,835.93,835.01,1.78518797]
[1766668927852,0.68197822,835.92,835.01,1.78518797]
[1766668928152,0.68197822,835.91,835.01,1.78518797]
[1766668928353,0.68197822,835.9,835.02,1.78518797]
[1766668928550,0.68197822,835.89,835.02,1.78518797]
[1766668928853,0.68197822,835.88,835.02,1.78518797]
[1766668929048,0.68197822,835.87,835.02,1.78518797]
[1766668929247,0.68197822,835.86,835.02,1.78518797]
[1766668929449,0.68197822,835.85,835.02,1.78518797]
[1766668929649,0.68197822,835.84,835.02,1.78518797]
[1766668929847,0.68197822,835.83,835.02,1.78518797]
[1766668930048,13.11031396,835.95,835.02,1.78518797]
[1766668930252,0.68207683,835.94,835.02,1.78518797]
[1766668930449,0.68207683,835.93,835.02,1.78518797]
[1766668930751,0.68207683,835.92,835.02,1.78518797]
[1766668930950,0.68207683,835.91,835.02,1.78518797]
[1766668931150,0.68207683,835.9,835.02,1.78518797]
[1766668931347,0.68207683,835.89,835.02,1.78518797]
[1766668931549,0.68207683,835.88,835.02,1.78518797]
[1766668931755,0.68207683,835.87,835.02,1.78518797]
[1766668931954,0.68207683,835.86,835.02,1.78518797]
[1766668932154,0.68207683,835.85,835.02,1.78518797]
[1766668932448,0.68207683,835.84,835.02,1.78518797]
[1766668932654,0.68207683,835.83,835.02,1.78518797]
[1766668932854,0.68207683,835.82,835.02,1.78518797]
[1766668933048,0.20818814,836.06,835.02,1.78518797]
[1766668933252,1.87929795,836.05,835.02,1.78518797]
[1766668933450,1.87929795,836.04,835.03,1.78518797]
[1766668933653,1.87929795,836.03,835.03,1.78518797]
[1766668933950,1.87929795,836.02,835.03,1.78518797]
[1766668934150,1.87929795,836.01,835.03,1.78518797]
[1766668934351,1.87929795,836.0,835.03,1.78518797]
[1766668934553,1.87929795,835.99,835.03,1.78518797]
[1766668934754,1.87929795,835.98,835.03,1.78518797]
[1766668934950,1.87929795,835.97,835.03,1.78518797]
[1766668935154,1.87929795,835.96,835.03,1.78518797]
[1766668935451,0.68220068,835.95,835.03,1.78518797]
[1766668935650,0.68220068,835.94,835.03,1.78518797]
[1766668935850,0.68220068,835.93,835.03,1.78518797]
[1766668936150,0.68220068,835.92,835.03,1.78518797]
[1766668936454,0.68220068,835.91,835.03,1.78518797]
[1766668936754,0.68220068,835.9,835.03,1.78518797]
[1766668936954,0.68220068,835.89,835.03,1.78518797]
[1766668937251,0.68220068,835.88,835.03,1.78518797]
[1766668937450,0.68220068,835.87,835.03,1.78518797]
[1766668937653,0.68220068,835.86,835.03,1.78518797]
[1766668937950,0.68220068,835.85,835.03,1.78518797]
[1766668938152,0.68220068,835.84,835.03,1.78518797]
[1766668938352,13.19855365,835.86,834.43,2.98744126]
[1766668938353,0.68220068,835.83,835.04,1.78518797]
[1766668938557,0.68220068,835.82,835.04,1.78518797]
[1766668938856,0.68220068,835.81,835.04,1.78518797]
[1766668939056,13.19855365,835.86,835.04,1.78518797]
[1766668939256,0.68242394,835.85,835.04,1.78518797]
[1766668939552,0.68242394,835.84,835.04,1.78518797]
[1766668939755,0.68242394,835.83,835.04,1.78518797]
[1766668939953,0.68242394,835.82,835.04,1.78518797]
[1766668940156,0.68242394,835.81,835.04,1.78518797]
[1766668940353,0.68242394,835.8,835.04,1.78518797]
[1766668940556,13.19855365,835.86,835.04,1.78518797]
[1766668940755,0.68252987,835.85,835.04,1.78518797]
[1766668940955,0.68252987,835.84,835.04,1.78518797]
[1766668941156,0.68252987,835.83,835.04,1.78518797]
[1766668941355,0.68252987,835.82,835.04,1.78518797]
[1766668941658,0.68252987,835.81,835.04,1.78518797]
[1766668941853,0.68252987,835.8,835.04,1.78518797]
[1766668942054,0.20818814,836.06,835.04,1.78518797]
[1766668942258,1.87962326,836.05,835.04,1.78518797]
[1766668942456,1.87962326,836.04,835.04,1.78518797]
[1766668942660,1.87962326,836.03,835.04,1.78518797]
[1766668942961,1.87962326,836.02,835.04,1.78518797]
[1766668943158,1.87962326,836.01,835.04,1.78518797]
[1766668943461,1.87962326,836.0,835.04,1.78518797]
[1766668943658,1.87962326,835.99,835.04,1.78518797]
[1766668943857,1.87962326,835.98,835.04,1.78518797]
[1766668944062,1.87962326,835.97,835.04,1.78518797]
[1766668944363,1.87962326,835.96,835.04,1.78518797]
[1766668944562,1.87962326,835.95,835.04,1.78518797]
[1766668944859,0.68252684,835.94,835.04,1.78518797]
[1766668945059,0.68252684,835.93,835.04,1.78518797]
[1766668945260,0.68252684,835.92,835.04,1.78518797]
[1766668945563,13.69670861,835.91,835.04,1.78518797]
[1766668945863,0.68252684,835.9,835.04,1.78518797]
[1766668946164,0.68252684,835.89,835.04,1.78518797]
[1766668946364,0.68252684,835.88,835.04,1.78518797]
[1766668946564,0.68252684,835.87,835.04,1.78518797]
[1766668946860,0.68252684,835.86,835.04,1.78518797]
[1766668947064,0.68252684,835.85,835.04,1.78518797]
[1766668947264,0.68252684,835.84,835.04,1.78518797]
[1766668947564,0.68252684,835.83,835.04,1.78518797]
[1766668947763,0.68252684,835.82,835.04,1.78518797]
[1766668947959,13.01418177,835.91,835.04,1.78518797]
[1766668947960,0.68252684,835.81,835.04,1.78518797]
[1766668948164,0.68252684,835.8,835.04,1.78518797]
[1766668948361,13.01418177,835.91,835.04,1.78518797]
[1766668948564,0.68253773,835.9,835.04,1.78518797]
[1766668948861,0.68253773,835.89,835.04,1.78518797]
[1766668949065,0.68253773,835.88,835.04,1.78518797]
[1766668949266,0.68253773,835.87,835.04,1.78518797]
[1766668949462,0.68253773,835.86,835.04,1.78518797]
[1766668949662,0.68253773,835.85,835.04,1.78518797]
[1766668949865,0.68253773,835.84,835.04,1.78518797]
[1766668950160,0.68253773,835.83,835.04,1.78518797]
[1766668950365,0.68253773,835.82,835.04,1.78518797]
[1766668950664,0.68253773,835.81,835.04,1.78518797]
[1766668950866,0.68253773,835.8,835.04,1.78518797]
[1766668951064,0.20818814,836.06,835.04,1.78518797]
[1766668951263,1.87975742,836.05,835.04,1.78518797]
[1766668951465,1.87975742,836.04,835.05,1.78518797]
[1766668951663,1.87975742,836.03,835.05,1.78518797]
[1766668951865,1.87975742,836.02,835.05,1.78518797]
[1766668952064,1.87975742,836.01,835.05,1.78518797]
[1766668952268,1.87975742,836.0,835.05,1.78518797]
[1766668952565,1.87975742,835.99,835.05,1.78518797]
[1766668952763,1.87975742,835.98,835.05,1.78518797]
[1766668952963,1.87975742,835.97,835.05,1.78518797]
[1766668953163,1.87975742,835.96,835.05,1.78518797]
[1766668953467,0.20818814,836.06,834.21,0.00927093]
[1766668953468,1.87975742,835.95,835.04,1.78518797]
[1766668953664,1.87975742,835.94,835.04,1.78518797]
[1766668953964,0.68266036,835.93,835.04,1.78518797]
[1766668954163,0.68266036,835.92,835.04,1.78518797]
[1766668954368,0.68266036,835.91,835.04,1.78518797]
[1766668954565,0.68266036,835.9,835.04,1.78518797]
[1766668954764,0.68266036,835.89,835.04,1.78518797]
[1766668954965,0.68266036,835.88,835.04,1.78518797]
[1766668955170,0.68266036,835.87,835.04,1.78518797]
[1766668955368,0.68266036,835.86,835.04,1.78518797]
[1766668955667,0.68266036,835.85,835.04,1.78518797]
[1766668955968,0.68266036,835.84,835.04,1.78518797]
[1766668956170,0.68266036,835.83,835.04,1.78518797]
[1766668956468,13.17324326,835.87,835.04,1.78518797]
[1766668956469,0.68266036,835.82,835.04,1.78518797]
[1766668956669,0.68266036,835.81,835.04,1.78518797]
[1766668956868,0.68266036,835.8,835.04,1.78518797]
[1766668957072,0.68266036,835.79,835.04,1.78518797]
[1766668957271,13.17324326,835.87,835.04,1.78518797]
[1766668957570,0.68206873,835.86,835.04,1.78518797]
[1766668957769,0.68206873,835.85,835.04,1.78518797]
[1766668957975,0.68206873,835.84,835.04,1.78518797]
[1766668958177,0.68206873,835.83,835.04,1.78518797]
[1766668958475,0.68206873,835.82,835.04,1.78518797]
[1766668958772,0.68206873,835.81,835.04,1.78518797]
[1766668958976,0.68206873,835.8,835.04,1.78518797]
[1766668959176,0.68206873,835.79,835.04,1.78518797]
[1766668959377,1.10033436,836.06,835.04,1.78518797]
[1766668959576,1.87919231,836.05,835.04,1.78518797]
[1766668959772,1.87919231,836.04,835.04,1.78518797]
[1766668959977,1.87919231,836.03,835.04,1.78518797]
[1766668960173,1.87919231,836.02,835.04,1.78518797]
[1766668960476,1.87919231,836.01,835.04,1.78518797]
[1766668960776,1.87919231,836.0,835.04,1.78518797]
[1766668961076,1.87919231,835.99,835.04,1.78518797]
[1766668961272,1.87919231,835.98,835.04,1.78518797]
[1766668961476,1.87919231,835.97,835.04,1.78518797]
[1766668961674,1.87919231,835.96,835.04,1.78518797]
[1766668961877,1.87919231,835.95,835.04,1.78518797]
[1766668962082,1.87919231,835.94,835.04,1.78518797]
[1766668962283,1.87919231,835.93,835.05,1.78518797]
[1766668962482,0.68208472,835.92,835.05,1.78518797]
[1766668962680,0.68208472,835.91,835.05,10.78049305]
[1766668962983,0.68208472,835.9,835.05,10.78049305]
[1766668963183,0.68208472,835.89,835.05,10.78049305]
[1766668963481,0.68208472,835.88,835.05,10.78049305]
[1766668963682,0.68208472,835.87,835.05,10.78049305]
[1766668963881,0.68208472,835.86,835.05,10.78049305]
[1766668964084,0.68208472,835.85,835.05,10.78049305]
[1766668964281,0.68208472,835.84,835.05,10.78049305]
[1766668964483,0.68208472,835.83,835.05,10.78049305]
[1766668964681,0.68208472,835.82,835.05,10.78049305]
[1766668964882,0.68208472,835.81,835.05,10.78049305]
[1766668965081,0.68208472,835.8,835.05,10.78049305]
[1766668965284,0.68208472,835.79,835.05,10.78049305]
[1766668965480,0.68208472,835.78,835.05,10.78049305]
[1766668965681,12.92276212,835.93,835.05,10.78049305]
[1766668965885,0.68256967,835.92,835.05,1.78518797]
[1766668966080,0.68256967,835.91,835.05,1.78518797]
[1766668966285,0.68256967,835.9,835.05,1.78518797]
[1766668966582,0.68256967,835.89,835.05,1.78518797]
[1766668966786,0.68256967,835.88,835.05,1.78518797]
[1766668967083,0.68256967,835.87,835.05,1.78518797]
[1766668967282,0.68256967,835.86,835.05,1.78518797]
[1766668967586,0.68256967,835.85,835.05,1.78518797]
[1766668967785,0.68256967,835.84,835.05,1.78518797]
[1766668967985,0.68256967,835.83,835.05,1.78518797]
[1766668968183,0.68256967,835.82,835.05,1.78518797]
[1766668968485,0.68256967,835.81,835.05,1.78518797]
[1766668968682,0.68256967,835.8,835.05,1.78518797]
[1766668968886,0.68256967,835.79,835.05,1.78518797]
[1766668969086,0.68256967,835.78,835.05,1.78518797]
[1766668969382,0.89214622,836.05,835.05,1.78518797]
[1766668969584,1.8796705,836.04,835.05,1.78518797]
[1766668969882,1.8796705,836.03,835.05,1.78518797]
[1766668970084,1.8796705,836.02,835.05,1.78518797]
[1766668970288,1.8796705,836.01,835.05,1.78518797]
[1766668970488,1.8796705,836.0,835.05,1.78518797]
[1766668970787,1.8796705,835.99,835.05,1.78518797]
[1766668970988,1.8796705,835.98,835.05,1.78518797]
[1766668971188,1.8796705,835.97,835.05,1.78518797]
[1766668971485,1.8796705,835.96,835.05,1.78518797]
[1766668971688,1.8796705,835.95,835.05,1.78518797]
[1766668971883,1.8796705,835.94,835.05,1.78518797]
[1766668972082,1.8796705,835.93,835.05,1.78518797]
[1766668972288,0.68256312,835.92,835.05,1.78518797]
[1766668972485,0.68256312,835.91,835.05,1.78518797]
[1766668972689,1.87971078,835.9,835.02,1.78518797]
[1766668972889,0.68256312,835.89,835.02,1.78518797]
[1766668973188,0.68256312,835.88,835.02,1.78518797]
[1766668973389,0.68256312,835.87,835.02,1.78518797]
[1766668973590,0.68256312,835.86,835.02,1.78518797]
[1766668973787,0.68256312,835.85,835.02,1.78518797]
[1766668973985,0.68256312,835.84,835.02,1.78518797]
[1766668974284,0.68256312,835.83,835.01,1.78518797]
[1766668974487,12.86696899,835.96,835.01,1.78518797]
[1766668974488,0.68256312,835.82,835.01,1.78518797]
[1766668974786,0.68256312,835.81,835.01,1.78518797]
[1766668974990,0.68256312,835.8,835.01,1.78518797]
[1766668975289,0.68256312,835.79,835.01,1.78518797]
[1766668975484,0.68256312,835.78,835.01,1.78518797]
[1766668975686,0.68256312,835.77,835.01,1.78518797]
[1766668975985,0.68256312,835.76,835.01,1.78518797]
[1766668976184,0.89214622,836.03,835.01,1.78518797]
[1766668976485,1.8795313,836.02,835.01,1.78518797]
[1766668976684,1.8795313,836.01,835.01,1.78518797]
[1766668976885,14.87494063,836.0,835.01,1.78518797]
[1766668977085,1.8795313,835.99,835.01,1.78518797]
[1766668977286,1.8795313,835.98,835.01,1.78518797]
[1766668977485,1.8795313,835.97,835.01,1.78518797]
[1766668977786,1.8795313,835.96,835.01,1.78518797]
[1766668977985,1.8795313,835.95,835.01,1.78518797]
[1766668978189,1.8795313,835.94,835.01,1.78518797]
[1766668978389,1.8795313,835.93,835.01,1.78518797]
[1766668978587,1.8795313,835.92,835.01,1.78518797]
[1766668978786,12.99540933,836.0,835.01,1.78518797]
[1766668978787,1.8795313,835.91,835.01,1.78518797]
[1766668978986,0.68238333,835.9,835.01,1.78518797]
[1766668979190,0.68238333,835.89,835.01,1.78518797]
[1766668979488,0.68238333,835.88,835.01,1.78518797]
[1766668979690,0.68238333,835.87,835.01,1.78518797]
[1766668979890,0.68238333,835.86,835.01,1.78518797]
[1766668980090,0.68238333,835.85,835.01,1.78518797]
[1766668980291,0.68238333,835.84,835.01,1.78518797]
[1766668980491,0.68238333,835.83,835.01,1.78518797]
[1766668980690,0.68238333,835.82,835.01,1.78518797]
[1766668980891,0.68238333,835.81,835.01,1.78518797]
[1766668981088,0.68238333,835.8,835.01,1.78518797]
[1766668981387,0.68238333,835.79,835.01,1.78518797]
[1766668981688,0.68238333,835.78,835.01,1.78518797]
[1766668981886,0.68238333,835.77,835.01,1.78518797]
[1766668982090,0.89214622,836.03,835.01,1.78518797]
[1766668982290,1.87974294,836.02,835.01,1.78518797]
[1766668982488,1.87974294,836.01,835.01,1.78518797]
[1766668982688,14.68230007,836.0,835.01,1.78518797]
[1766668982888,1.87974294,835.99,835.01,1.78518797]
[1766668983087,1.87974294,835.98,835.01,1.78518797]
[1766668983292,1.87974294,835.97,835.01,1.78518797]
[1766668983493,1.87974294,835.96,835.01,1.78518797]
[1766668983691,1.87974294,835.95,835.01,1.78518797]
[1766668983992,1.87974294,835.94,835.01,1.78518797]
[1766668984192,1.87974294,835.93,835.0,1.78518797]
[1766668984390,1.87974294,835.92,835.0,1.78518797]
[1766668984592,0.68259444,835.91,835.0,1.78518797]
[1766668984790,0.68259444,835.9,835.0,1.78518797]
[1766668985089,0.68259444,835.89,835.0,1.78518797]
[1766668985293,0.68259444,835.88,835.0,1.78518797]
[1766668985494,0.68259444,835.87,835.0,1.78518797]
[1766668985692,0.68259444,835.86,835.0,1.78518797]
[1766668985992,0.68259444,835.85,835.0,1.78518797]
[1766668986192,0.68259444,835.84,835.0,1.78518797]
[1766668986396,0.68259444,835.83,835.0,1.78518797]
[1766668986596,0.68259444,835.82,835.0,1.78518797]
[1766668986796,0.68259444,835.81,835.0,1.78518797]
[1766668986995,0.68259444,835.8,835.0,1.78518797]
[1766668987195,0.68259444,835.79,835.0,1.78518797]
[1766668987393,0.68259444,835.78,835.0,1.78518797]
[1766668987596,0.68259444,835.77,835.0,1.78518797]
[1766668987893,0.89214622,836.04,835.0,1.78518797]
[1766668988098,1.87965246,836.03,835.0,1.78518797]
[1766668988393,1.87965246,836.02,835.0,1.78518797]
[1766668988597,1.87965246,836.01,835.0,1.78518797]
[1766668988798,1.87965246,836.0,835.0,1.78518797]
[1766668988992,1.87965246,835.99,835.0,1.78518797]
[1766668989197,1.87965246,835.98,835.0,1.78518797]
[1766668989497,1.87965246,835.97,835.0,1.78518797]
[1766668989698,1.87965246,835.96,835.0,1.78518797]
[1766668989898,1.87965246,835.95,835.0,1.78518797]
[1766668990099,1.87965246,835.94,835.0,1.78518797]
[1766668990395,1.87965246,835.93,835.0,1.78518797]
[1766668990594,1.87965246,835.92,835.0,1.78518797]